bitfinex-derivatives/quotes_BTCF0:USTF0_20250805
["timestamp","ask_amount","ask_price","bid_price","bid_amount"]
[1754412423354,1.06904905,113000.0,112980.0,1.4011729]
[1754412423556,0.6704772,112990.0,112980.0,1.22412]
[1754412423756,0.69250679,112990.0,112980.0,1.85324]
[1754412423958,0.69250679,112990.0,112980.0,2.0302929]
[1754412424562,0.69250679,112990.0,112980.0,2.0312929]
[1754412424756,0.69250679,112990.0,112980.0,0.1780529]
[1754412425061,0.69250679,112990.0,112980.0,0.8071329]
[1754412425260,0.69350679,112990.0,112980.0,0.8061329]
[1754412425661,0.69350679,112990.0,112980.0,0.8081329]
[1754412426062,0.6714772,112990.0,112980.0,0.8081329]
[1754412426251,0.69682304,112990.0,112980.0,0.8061329]
[1754412426762,0.69582304,112990.0,112980.0,0.8061329]
[1754412427262,0.69582304,112990.0,112980.0,0.62908]
[1754412427855,0.2148929,112980.0,112970.0,0.34563618]
[1754412428056,0.6704929,112980.0,112970.0,0.97467618]
[1754412428864,0.6704929,112980.0,112970.0,0.93044968]
[1754412429861,0.7989329,112980.0,112970.0,0.93044968]
[1754412430260,0.7989329,112980.0,112970.0,0.88618518]
[1754412430455,0.7989329,112980.0,112970.0,0.07123362]
[1754412430660,0.7989329,112980.0,112970.0,0.70023362]
[1754412431061,0.7989329,112980.0,112970.0,0.87730212]
[1754412431561,0.7424229,112980.0,112970.0,0.88631333]
[1754412431764,0.7989329,112980.0,112970.0,0.88631333]
[1754412432161,0.7989329,112980.0,112970.0,1.43989279]
[1754412432362,0.7424229,112980.0,112970.0,1.43989279]
[1754412432558,0.3300329,112980.0,112970.0,1.43989279]
[1754412433065,0.3300329,112980.0,112970.0,1.70279279]
[1754412433860,0.15298,112980.0,112970.0,1.70279279]
[1754412434563,0.12844,112980.0,112970.0,2.06359279]
[1754412434765,0.12844,112980.0,112970.0,2.54062479]
[1754412435157,0.12844,112980.0,112970.0,2.54262479]
[1754412435762,0.12844,112980.0,112970.0,2.54362479]
[1754412436067,0.7155252,113000.0,112990.0,0.1770373]
[1754412436267,0.7504452,113000.0,112990.0,1.35953676]
[1754412436768,0.7061888,113000.0,112990.0,1.35953676]
[1754412437469,0.7277788,113000.0,112990.0,1.35953676]
[1754412437768,0.7793688,113000.0,112990.0,1.35953676]
[1754412438364,0.7793688,113000.0,112990.0,0.8059573]
[1754412438873,0.7793688,113000.0,112990.0,1.0688573]
[1754412441562,0.6270132,113000.0,112990.0,1.0688573]
[1754412441769,0.06464,113000.0,112990.0,1.62243676]
[1754412441965,0.06464,113000.0,112990.0,1.98323676]
[1754412442376,0.08926,113000.0,112990.0,1.98323676]
[1754412442670,0.6926316,113000.0,112990.0,1.44539946]
[1754412442875,0.7318116,113000.0,112990.0,1.62443676]
[1754412443175,0.7318116,113000.0,112990.0,1.0706573]
[1754412443675,0.7318116,113000.0,112990.0,1.62423676]
[1754412443875,0.7318116,113000.0,112990.0,1.62419676]
[1754412444075,0.7318116,113000.0,112990.0,1.0706173]
[1754412444470,0.7318116,113000.0,112990.0,1.0716173]
[1754412444670,0.6671716,113000.0,112990.0,1.0716173]
[1754412444974,0.6671716,113000.0,112990.0,0.4419373]
[1754412445168,0.6671716,113000.0,112990.0,0.2659]
[1754412445571,1.22075106,113000.0,112990.0,0.89454]
[1754412445781,1.24324237,113000.0,112990.0,0.89454]
[1754412446076,0.68966291,113000.0,112990.0,1.0715372]
[1754412446671,0.68966291,113000.0,112990.0,0.8945]
[1754412446874,0.68966291,113000.0,112990.0,1.0715372]
[1754412447377,0.68966291,113000.0,112990.0,0.8945]
[1754412447579,0.68966291,113000.0,112990.0,1.0715372]
[1754412447875,1.42024237,113000.0,112990.0,0.003]
[1754412448080,1.72024237,113000.0,112990.0,0.63156]
[1754412448779,1.72024237,113000.0,112990.0,0.003]
[1754412448977,1.72024237,113000.0,112990.0,0.63152]
[1754412449273,1.72024237,113000.0,112990.0,0.003]
[1754412449476,1.72024237,113000.0,112990.0,0.63152]
[1754412450981,1.83096237,113000.0,112990.0,0.63152]
[1754412451183,1.83096237,113000.0,112990.0,0.003]
[1754412451378,1.83096237,113000.0,112990.0,0.63148]
[1754412451780,1.83096237,113000.0,112990.0,0.003]
[1754412451979,1.83096237,113000.0,112990.0,0.63148]
[1754412452472,0.3064029,112980.0,112970.0,0.07123362]
[1754412452676,1.0280029,112980.0,112970.0,0.69971362]
[1754412453579,1.0280029,112980.0,112970.0,0.70371362]
[1754412454182,1.0280029,112980.0,112970.0,0.07523362]
[1754412454484,1.0280029,112980.0,112970.0,0.70671362]
[1754412454884,1.0280029,112980.0,112970.0,0.88378222]
[1754412455083,1.0280029,112980.0,112970.0,0.25530222]
[1754412455582,1.0280029,112980.0,112970.0,0.88374222]
[1754412457484,1.0280029,112980.0,112970.0,0.07823362]
[1754412457679,1.58158236,112980.0,112970.0,0.07823362]
[1754412457880,1.0280029,112980.0,112970.0,0.70659362]
[1754412458079,1.03699901,112980.0,112970.0,0.70659362]
[1754412458680,1.61339467,112980.0,112970.0,0.07823362]
[1754412458882,1.61339467,112980.0,112970.0,0.6324]
[1754412459182,1.61339467,112980.0,112970.0,0.6284]
[1754412459378,1.61439467,112980.0,112970.0,4e-05]
[1754412459588,1.61439467,112980.0,112970.0,0.6284]
[1754412462282,1.0518191,112980.0,112970.0,0.6284]
[1754412462786,1.1253391,112980.0,112970.0,0.6284]
[1754412462988,1.59969537,112980.0,112970.0,0.6284]
[1754412464791,1.59969537,112980.0,112970.0,0.62832]
[1754412465879,1.60859272,112980.0,112970.0,0.62832]
[1754412466082,1.60859272,112980.0,112970.0,0.62828]
[1754412467189,1.59969537,112980.0,112970.0,0.62828]
[1754412467992,1.60869577,112980.0,112970.0,0.62828]
[1754412469988,1.60869577,112980.0,112970.0,0.62824]
[1754412471685,1.59969537,112980.0,112970.0,0.62824]
[1754412472597,1.60851208,112980.0,112970.0,0.62824]
[1754412472796,1.60851208,112980.0,112970.0,0.62812]
[1754412473394,1.59969537,112980.0,112970.0,0.62812]
[1754412474897,1.60860974,112980.0,112970.0,0.62812]
[1754412475297,1.59969537,112980.0,112970.0,0.62812]
[1754412475600,1.59969537,112980.0,112970.0,4e-05]
[1754412475896,1.59969537,112980.0,112970.0,0.62808]
[1754412476695,1.60860454,112980.0,112970.0,0.62808]
[1754412477597,1.12531778,112980.0,112970.0,0.62808]
[1754412478098,1.59969537,112980.0,112970.0,0.62808]
[1754412478296,1.59969537,112980.0,112970.0,0.628]
[1754412478501,1.59969537,112980.0,112970.0,4e-05]
[1754412478802,1.59969537,112980.0,112970.0,0.62796]
[1754412479297,1.59969537,112980.0,112970.0,4e-05]
[1754412479491,1.59969537,112980.0,112970.0,0.62796]
[1754412479796,0.3049887,112970.0,112960.0,0.8563187]
[1754412479996,1.16296117,112970.0,112960.0,0.2283987]
[1754412480297,1.16296117,112970.0,112960.0,0.8562787]
[1754412481197,1.16296117,112970.0,112960.0,0.2293987]
[1754412481402,1.16296117,112970.0,112960.0,0.8572787]
[1754412481597,1.16296117,112970.0,112960.0,0.8582387]
[1754412482002,1.16296117,112970.0,112960.0,0.8572387]
[1754412482395,1.16296117,112970.0,112960.0,0.2293987]
[1754412482600,1.2263145,112970.0,112960.0,0.2293987]
[1754412482802,1.16296117,112970.0,112960.0,0.2293987]
[1754412483001,1.16296117,112970.0,112960.0,0.8571987]
[1754412483194,0.77882358,112970.0,112960.0,0.6278]
[1754412483398,1.25320117,112970.0,112960.0,0.6278]
[1754412484398,0.77882358,112970.0,112960.0,0.6278]
[1754412484598,1.25320117,112970.0,112960.0,0.6278]
[1754412486100,0.3050044,112960.0,112950.0,4e-05]
[1754412486303,1.16297687,112960.0,112950.0,0.6278]
[1754412486607,1.16297687,112960.0,112950.0,4e-05]
[1754412486906,1.24713687,112960.0,112950.0,0.6278]
[1754412490707,0.77275928,112960.0,112950.0,0.8049]
[1754412491210,0.77275928,112960.0,112950.0,0.6278]
[1754412491812,1.24713687,112960.0,112950.0,0.6278]
[1754412492605,0.77275928,112960.0,112950.0,1.27927769]
[1754412493310,0.77275928,112960.0,112950.0,0.8049001]
[1754412493515,0.77275928,112960.0,112950.0,0.6278]
[1754412494513,1.24713687,112960.0,112950.0,0.6278]
[1754412494810,1.24713687,112960.0,112950.0,0.62764]
[1754412495211,1.24713687,112960.0,112950.0,4e-05]
[1754412495512,1.24713687,112960.0,112950.0,0.6276]
[1754412496109,1.24713687,112960.0,112950.0,4e-05]
[1754412496310,1.24713687,112960.0,112950.0,0.62756]
[1754412497713,1.25213687,112960.0,112950.0,0.62756]
[1754412501010,0.77775928,112960.0,112950.0,0.62756]
[1754412501812,1.25213687,112960.0,112950.0,0.62756]
[1754412504016,1.25213687,112960.0,112950.0,4e-05]
[1754412504218,1.25213687,112960.0,112950.0,0.6274]
[1754412506414,0.77775928,112960.0,112950.0,0.6274]
[1754412507916,1.25213687,112960.0,112950.0,0.6274]
[1754412511316,1.25213687,112960.0,112950.0,0.8045]
[1754412511511,0.77775928,112960.0,112950.0,1.27887759]
[1754412511718,0.77775928,112960.0,112950.0,0.8045]
[1754412511916,0.64983928,112960.0,112950.0,0.8045]
[1754412512121,0.5378569,112980.0,112970.0,0.1770686]
[1754412512420,0.5378529,112980.0,112970.0,1.27856619]
[1754412512621,0.6623246,112990.0,112980.0,0.1770529]
[1754412512817,0.6623246,112990.0,112980.0,0.47437759]
[1754412513018,0.3832072,112980.0,112970.0,0.65144629]
[1754412513218,0.7996672,112980.0,112970.0,0.8041487]
[1754412513420,0.8489338,112980.0,112970.0,0.8041487]
[1754412513818,0.6718687,112980.0,112970.0,0.65144629]
[1754412514119,0.5605287,112980.0,112970.0,1.27852629]
[1754412514520,0.6648687,112980.0,112970.0,1.27852629]
[1754412515022,0.6648687,112980.0,112970.0,1.27848629]
[1754412515423,0.6648687,112980.0,112970.0,1.27844629]
[1754412515819,0.6648687,112980.0,112970.0,0.65244629]
[1754412516112,0.6648687,112980.0,112970.0,1.27940629]
[1754412517232,0.6648687,112980.0,112970.0,0.8050287]
[1754412517730,0.6648687,112980.0,112970.0,0.001]
[1754412517926,1.13924629,112980.0,112970.0,0.001]
[1754412518732,1.13924629,112980.0,112970.0,0.62788]
[1754412518930,1.13924629,112980.0,112970.0,0.001]
[1754412519129,1.13924629,112980.0,112970.0,0.62784]
[1754412519631,1.14524629,112980.0,112970.0,0.62784]
[1754412519831,1.19660629,112980.0,112970.0,0.62784]
[1754412520032,0.3040843,112960.0,112950.0,0.2214027]
[1754412520232,1.0256843,112960.0,112950.0,0.8482427]
[1754412521233,1.0276843,112960.0,112950.0,0.8482427]
[1754412521734,0.6668843,112960.0,112950.0,0.8482427]
[1754412523334,0.6648843,112960.0,112950.0,0.8492427]
[1754412523533,0.6648843,112960.0,112950.0,0.2224027]
[1754412523936,0.6648843,112960.0,112950.0,0.8491627]
[1754412524333,0.6648843,112960.0,112950.0,0.2224027]
[1754412524538,0.6648843,112960.0,112950.0,0.8491227]
[1754412525635,0.6648843,112960.0,112950.0,1.32350029]
[1754412526434,0.6112243,112960.0,112950.0,1.32350029]
[1754412526739,0.5605443,112960.0,112950.0,1.32350029]
[1754412527835,0.5378843,112960.0,112950.0,1.32350029]
[1754412528036,0.02266,112960.0,112950.0,1.32350029]
[1754412528230,0.5605443,112960.0,112950.0,1.32350029]
[1754412528942,0.6648843,112960.0,112950.0,1.32350029]
[1754412530036,0.5893243,112960.0,112950.0,0.69678029]
[1754412530242,0.6648843,112960.0,112950.0,1.27914549]
[1754412532343,0.6648843,112960.0,112950.0,0.8047679]
[1754412534046,0.6648843,112960.0,112950.0,1.27914549]
[1754412535144,0.6648843,112960.0,112950.0,0.8047679]
[1754412535346,0.6648843,112960.0,112950.0,0.8046079]
[1754412535947,0.6648843,112960.0,112950.0,0.1781279]
[1754412536146,0.6648843,112960.0,112950.0,0.8046079]
[1754412536748,0.6112243,112960.0,112950.0,1.27894549]
[1754412537251,0.5605443,112960.0,112950.0,1.27894549]
[1754412537857,0.1997443,112960.0,112950.0,1.27894549]
[1754412538060,0.5605443,112960.0,112950.0,1.27894549]
[1754412538251,0.1997443,112960.0,112950.0,1.27894549]
[1754412539556,0.1997443,112960.0,112950.0,1.50734419]
[1754412541254,0.5821478,112970.0,112960.0,0.1770843]
[1754412541456,0.6173188,112980.0,112970.0,0.1770686]
[1754412541457,0.8898628,112980.0,112970.0,0.1770686]
[1754412541654,0.8374928,112980.0,112970.0,1.27776619]
[1754412541850,0.8898628,112980.0,112970.0,1.27776619]
[1754412542154,0.45384,112980.0,112970.0,1.27776619]
[1754412542355,0.09304,112980.0,112970.0,3.34019819]
[1754412542961,0.6622372,112990.0,112980.0,0.177053]
[1754412543161,0.8075672,112990.0,112980.0,0.65143059]
[1754412543759,0.7828678,112990.0,112980.0,0.65143059]
[1754412544059,0.08014,112990.0,112980.0,0.65243059]
[1754412544554,0.08014,112990.0,112980.0,0.65143059]
[1754412544760,0.08014,112990.0,112980.0,0.65443059]
[1754412544960,0.2571773,112990.0,112980.0,0.65443059]
[1754412546064,0.08014,112990.0,112980.0,0.65443059]
[1754412546261,0.2345974,112990.0,112980.0,0.65443059]
[1754412546456,0.7215574,112990.0,112980.0,1.28059059]
[1754412548360,0.7215574,112990.0,112980.0,0.70577629]
[1754412548664,1.19593499,112990.0,112980.0,0.003]
[1754412548866,1.19593499,112990.0,112980.0,0.806133]
[1754412549054,0.7215574,112990.0,112980.0,0.806133]
[1754412550566,0.7215574,112990.0,112980.0,0.180053]
[1754412550767,0.7215574,112990.0,112980.0,0.62704]
[1754412551068,0.7215574,112990.0,112980.0,0.804093]
[1754412551368,0.7235574,112990.0,112980.0,0.803093]
[1754412552165,0.7235574,112990.0,112980.0,0.62604]
[1754412552968,0.7235574,112990.0,112980.0,0.803093]
[1754412553164,0.7235574,112990.0,112980.0,0.177053]
[1754412553373,0.7235574,112990.0,112980.0,0.803013]
[1754412554367,0.7235574,112990.0,112980.0,0.177053]
[1754412554567,0.7235574,112990.0,112980.0,0.802973]
[1754412555066,0.7235574,112990.0,112980.0,1.27735059]
[1754412556370,0.7215574,112990.0,112980.0,1.27835059]
[1754412557172,0.7215574,112990.0,112980.0,0.803973]
[1754412557372,0.7215574,112990.0,112980.0,1.27835059]
[1754412557974,0.7215574,112990.0,112980.0,0.65243059]
[1754412558178,0.7215574,112990.0,112980.0,1.27831059]
[1754412559483,0.7215574,112990.0,112980.0,0.65243059]
[1754412559682,0.7215574,112990.0,112980.0,1.27827059]
[1754412560483,0.7215574,112990.0,112980.0,0.803893]
[1754412560680,0.7215574,112990.0,112980.0,1.27827059]
[1754412561082,0.7215574,112990.0,112980.0,0.178053]
[1754412561282,0.7215574,112990.0,112980.0,0.803853]
[1754412561684,0.7215574,112990.0,112980.0,1.27823059]
[1754412562186,0.7215574,112990.0,112980.0,0.803853]
[1754412562386,0.7215574,112990.0,112980.0,1.27823059]
[1754412562587,0.7215574,112990.0,112980.0,1.27815059]
[1754412562986,0.74432506,112990.0,112980.0,1.27815059]
[1754412563681,0.74432506,112990.0,112980.0,0.803773]
[1754412564782,0.68676506,112990.0,112980.0,0.803773]
[1754412565184,0.68676506,112990.0,112980.0,1.27815059]
[1754412566783,0.63439506,112990.0,112980.0,1.27815059]
[1754412566982,0.58318506,112990.0,112980.0,1.27815059]
[1754412569790,0.58318506,112990.0,112980.0,1.54105059]
[1754412569983,0.02276766,112990.0,112980.0,1.90185059]
[1754412570184,0.11959,113000.0,112990.0,0.1770373]
[1754412570387,0.11843165,113000.0,112990.0,1.27511489]
[1754412570690,0.09564,113000.0,112990.0,1.27511489]
[1754412571083,0.09564,113000.0,112990.0,2.22649248]
[1754412573792,0.3157936,113020.0,113010.0,0.1770061]
[1754412573988,0.3671936,113020.0,113010.0,1.27678369]
[1754412574185,0.06376,113020.0,113010.0,1.90048369]
[1754412574586,0.06376,113020.0,113010.0,3.12472369]
[1754412574987,0.07076,113020.0,113010.0,3.12472369]
[1754412575192,0.07076,113020.0,113010.0,3.13382408]
[1754412575391,0.06376,113020.0,113010.0,3.13382408]
[1754412575593,0.06376,113020.0,113010.0,3.13782408]
[1754412576094,0.08771,113020.0,113010.0,3.13782408]
[1754412576396,0.08771,113020.0,113010.0,3.13982408]
[1754412576893,0.02395,113020.0,113010.0,3.13982408]
[1754412577392,0.12644,113020.0,113010.0,2.91159818]
[1754412577590,0.07504,113020.0,113010.0,3.27239818]
[1754412577786,0.02395,113020.0,113010.0,3.27239818]
[1754412578691,0.6573816,113030.0,113020.0,0.1769904]
[1754412578891,0.5617378,113030.0,113020.0,0.65136799]
[1754412579891,0.5937378,113030.0,113020.0,0.65136799]
[1754412580493,0.02395,113030.0,113020.0,0.65136799]
[1754412580690,0.7296524,113040.0,113030.0,0.1769747]
[1754412580890,0.7084493,113040.0,113030.0,1.27643229]
[1754412581794,0.3476493,113040.0,113030.0,1.27643229]
[1754412581993,0.3476493,113040.0,113030.0,1.34670144]
[1754412582192,0.07504,113040.0,113030.0,1.34670144]
[1754412582395,0.02395,113040.0,113030.0,1.34670144]
[1754412582695,0.02395,113040.0,113030.0,1.34770144]
[1754412583392,0.200909,113040.0,113030.0,1.34770144]
[1754412583787,0.264699,113040.0,113030.0,1.34770144]
[1754412583991,0.303399,113040.0,113030.0,1.34770144]
[1754412584296,0.303399,113040.0,113030.0,0.87332385]
[1754412584496,0.664199,113040.0,113030.0,0.87332385]
[1754412584690,0.664199,113040.0,113030.0,1.34770144]
[1754412586294,0.664199,113040.0,113030.0,1.34750144]
[1754412586602,0.664199,113040.0,113030.0,0.87308385]
[1754412586802,0.68688207,113040.0,113030.0,0.87308435]
[1754412587900,0.68688207,113040.0,113030.0,2.35960603]
[1754412587901,0.02395,113040.0,113030.0,2.35960603]
[1754412588295,0.6262088,113060.0,113030.0,2.35960603]
[1754412588296,0.6641682,113060.0,113050.0,0.1769439]
[1754412588491,0.68685028,113060.0,113050.0,1.27608149]
[1754412588701,0.32605028,113060.0,113050.0,1.27608149]
[1754412588903,0.12644,113060.0,113050.0,1.27608149]
[1754412589502,0.052,113060.0,113050.0,1.89978149]
[1754412589798,0.02395,113060.0,113050.0,1.89978149]
[1754412589999,0.02895,113060.0,113050.0,1.89978149]
[1754412590199,0.02895,113060.0,113050.0,1.27502149]
[1754412590393,0.02895,113060.0,113050.0,1.89970149]
[1754412590795,0.02895,113060.0,113050.0,1.98011297]
[1754412592200,0.02895,113060.0,113050.0,1.09253297]
[1754412592501,0.02487,113100.0,113090.0,0.1768814]
[1754412592707,0.04753719,113100.0,113090.0,2.57999047]
[1754412592900,0.02266719,113100.0,113090.0,3.49557954]
[1754412593096,0.48981,113120.0,113110.0,0.1768501]
[1754412593303,0.48981,113120.0,113110.0,1.35615917]
[1754412593601,0.6666445,113120.0,113110.0,1.35615917]
[1754412593800,0.6666445,113120.0,113110.0,0.8013701]
[1754412594302,0.3058601,113110.0,113100.0,0.2210668]
[1754412594603,0.6666601,113110.0,113100.0,0.8455468]
[1754412595502,0.6666601,113110.0,113100.0,1.40033587]
[1754412595704,0.6666601,113110.0,113100.0,1.40333587]
[1754412596205,0.6666601,113110.0,113100.0,1.41214237]
[1754412598607,0.6666601,113110.0,113100.0,1.67504237]
[1754412599709,0.02487,113110.0,113100.0,2.03584237]
[1754412599906,0.6417631,113130.0,113120.0,0.1768345]
[1754412600203,0.08619,113120.0,113100.0,0.3631366]
[1754412600514,0.6666601,113110.0,113100.0,0.5399884]
[1754412600811,0.6666601,113110.0,113100.0,1.1641484]
[1754412601611,0.6666601,113110.0,113100.0,1.71893747]
[1754412601803,0.02487,113110.0,113100.0,1.71593747]
[1754412602008,0.5625201,113110.0,113100.0,1.71593747]
[1754412602412,0.5975101,113110.0,113100.0,1.71893747]
[1754412603010,0.5975101,113110.0,113100.0,1.72093747]
[1754412603205,0.5975101,113110.0,113100.0,1.72193747]
[1754412603605,0.2841164,113120.0,113110.0,0.17685]
[1754412603802,0.2841164,113120.0,113110.0,1.17882907]
[1754412603803,0.6666564,113120.0,113110.0,1.17882907]
[1754412604004,0.6666564,113120.0,113110.0,1.35567917]
[1754412605008,0.68906787,113120.0,113110.0,0.8008501]
[1754412605312,0.68906787,113120.0,113110.0,0.8038501]
[1754412605813,0.68906787,113120.0,113110.0,1.35863917]
[1754412606004,0.68906787,113120.0,113110.0,0.73463917]
[1754412606207,0.68906787,113120.0,113110.0,1.35859917]
[1754412606811,0.68906787,113120.0,113110.0,0.73463917]
[1754412607012,0.68906787,113120.0,113110.0,1.35855917]
[1754412610210,0.68906787,113120.0,113110.0,0.55778907]
[1754412610415,0.68906787,113120.0,113110.0,0.8897]
[1754412611309,0.68906787,113120.0,113110.0,0.88966]
[1754412611912,0.68906787,113120.0,113110.0,0.2659]
[1754412612114,0.68906787,113120.0,113110.0,0.88666]
[1754412612314,0.68906787,113120.0,113110.0,0.88662]
[1754412613023,1.60721027,113120.0,113110.0,0.2629]
[1754412613214,0.3058757,113100.0,113090.0,0.07093272]
[1754412613412,0.3058914,113090.0,113080.0,2.35907887]
[1754412613706,0.68910287,113090.0,113080.0,2.98275887]
[1754412613912,0.68910287,113090.0,113080.0,2.99170492]
[1754412614710,0.68910287,113090.0,113080.0,2.99370492]
[1754412615015,0.68910287,113090.0,113080.0,2.37502492]
[1754412615210,0.68910287,113090.0,113080.0,0.2281062]
[1754412615432,0.68910287,113090.0,113080.0,0.9176162]
[1754412615611,0.68910287,113090.0,113080.0,0.69451]
[1754412615811,0.68910287,113090.0,113080.0,0.62964]
[1754412616210,0.68910287,113090.0,113080.0,0.006]
[1754412616411,0.7524562,113090.0,113080.0,0.62964]
[1754412617216,0.7524562,113090.0,113080.0,0.62968]
[1754412618115,0.7524562,113090.0,113080.0,0.62868]
[1754412618916,0.7524562,113090.0,113080.0,0.8714071]
[1754412619118,0.7524562,113090.0,113080.0,1.42419617]
[1754412619320,0.7524562,113090.0,113080.0,1.44841617]
[1754412619619,0.7544562,113090.0,113080.0,1.44541617]
[1754412620317,0.7534562,113090.0,113080.0,1.44541617]
[1754412623019,0.69010287,113090.0,113080.0,1.44541617]
[1754412623217,0.57403287,113090.0,113080.0,1.44541617]
[1754412623414,0.56109287,113090.0,113080.0,1.44529617]
[1754412623610,0.58371287,113090.0,113080.0,1.44529617]
[1754412624023,0.61632287,113090.0,113080.0,1.44529617]
[1754412624320,0.68833287,113090.0,113080.0,1.44529617]
[1754412624520,0.68833287,113090.0,113080.0,0.8662471]
[1754412624819,0.68833287,113090.0,113080.0,0.8891471]
[1754412626121,0.68833287,113090.0,113080.0,0.8662471]
[1754412626318,0.68833287,113090.0,113080.0,0.82041617]
[1754412626519,0.68833287,113090.0,113080.0,1.44393617]
[1754412627021,0.68833287,113090.0,113080.0,1.42099617]
[1754412627215,0.68833287,113090.0,113080.0,0.82041617]
[1754412627420,0.68833287,113090.0,113080.0,1.44389617]
[1754412627721,0.68833287,113090.0,113080.0,1.42099617]
[1754412628123,0.68833287,113090.0,113080.0,1.44389617]
[1754412628723,0.68833287,113090.0,113080.0,0.82041617]
[1754412628928,0.68833287,113090.0,113080.0,1.44385617]
[1754412629320,0.56109287,113090.0,113080.0,1.44385617]
[1754412629521,0.56109277,113090.0,113080.0,1.44385617]
[1754412631124,0.56109277,113090.0,113080.0,1.70675617]
[1754412631323,0.68733277,113090.0,113080.0,1.70875617]
[1754412631527,0.68733277,113090.0,113080.0,0.95413]
[1754412631723,0.68733277,113090.0,113080.0,1.1310269]
[1754412632230,0.68733277,113090.0,113080.0,0.90403]
[1754412632423,0.68733277,113090.0,113080.0,1.0809271]
[1754412632623,0.68733277,113090.0,113080.0,1.1098071]
[1754412632818,0.68733277,113090.0,113080.0,0.30951]
[1754412633024,0.68733277,113090.0,113080.0,0.93291]
[1754412633222,0.68833277,113090.0,113080.0,0.88626]
[1754412633527,0.68833277,113090.0,113080.0,1.1076071]
[1754412634031,0.68833277,113090.0,113080.0,1.68529617]
[1754412635420,0.61632277,113090.0,113080.0,1.68529617]
[1754412635728,0.65120277,113090.0,113080.0,1.68529617]
[1754412636128,0.61632277,113090.0,113080.0,1.68529617]
[1754412636329,0.58371277,113090.0,113080.0,1.44346617]
[1754412636623,0.56109277,113090.0,113080.0,1.44346617]
[1754412636825,0.20029277,113090.0,113080.0,1.44346617]
[1754412637026,0.56109277,113090.0,113080.0,1.44346617]
[1754412637330,0.38421147,113090.0,113080.0,1.44346617]
[1754412637527,0.02241147,113090.0,113080.0,1.44346617]
[1754412637723,0.38321147,113090.0,113080.0,1.44346617]
[1754412637930,0.3608,113090.0,113080.0,1.44346617]
[1754412638131,0.10796,113100.0,113090.0,0.2653814]
[1754412638424,0.10796,113100.0,113090.0,1.18097047]
[1754412638729,0.13011202,113100.0,113090.0,1.18097047]
[1754412639118,0.10796,113100.0,113090.0,1.18097047]
[1754412639730,0.1768509,113110.0,113100.0,0.2135858]
[1754412639932,0.19900894,113110.0,113100.0,1.44339487]
[1754412640429,0.02215804,113110.0,113100.0,1.44339487]
[1754412640628,0.19900824,113110.0,113100.0,1.44339487]
[1754412642729,0.19900824,113110.0,113100.0,1.44639487]
[1754412642930,0.19900824,113110.0,113100.0,1.44739487]
[1754412643831,0.02215804,113110.0,113100.0,1.44739487]
[1754412644035,0.19900814,113110.0,113100.0,1.44739487]
[1754412644228,0.02215804,113110.0,113100.0,1.44739487]
[1754412645123,0.19900824,113110.0,113100.0,1.44739487]
[1754412645832,0.19900824,113110.0,113100.0,1.71029487]
[1754412646232,0.1768502,113110.0,113100.0,1.71029487]
[1754412646533,0.1994702,113110.0,113100.0,1.71029487]
[1754412646733,0.02262,113110.0,113100.0,1.71029487]
[1754412646938,0.1994701,113110.0,113100.0,1.71029487]
[1754412648040,0.1994701,113110.0,113100.0,1.08705487]
[1754412648335,0.6277601,113110.0,113100.0,1.71005487]
[1754412648636,0.6277601,113110.0,113100.0,1.62834112]
[1754412648829,0.5928801,113110.0,113100.0,1.62834112]
[1754412649030,0.5732701,113110.0,113100.0,1.62834112]
[1754412650340,0.5928801,113110.0,113100.0,1.62834112]
[1754412650636,0.6277601,113110.0,113100.0,1.62834112]
[1754412652751,0.6648901,113110.0,113100.0,1.62834112]
[1754412653155,0.68681937,113110.0,113100.0,1.62834112]
[1754412655351,0.68681937,113110.0,113100.0,0.2669]
[1754412655554,0.68681937,113110.0,113100.0,0.004]
[1754412655949,1.15989469,113110.0,113100.0,0.62684]
[1754412656148,1.63671869,113110.0,113100.0,0.6268]
[1754412656453,1.16364337,113110.0,113100.0,0.6268]
[1754412656647,0.98681937,113110.0,113100.0,0.6268]
[1754412656845,0.98681937,113110.0,113100.0,0.6238]
[1754412656846,0.98781937,113110.0,113100.0,0.6238]
[1754412657447,0.98781937,113110.0,113100.0,0.001]
[1754412657448,1.54248902,113110.0,113100.0,0.001]
[1754412657650,1.71931302,113110.0,113100.0,0.6228]
[1754412657853,0.3038357,113100.0,113090.0,0.07241337]
[1754412658054,0.68656497,113100.0,113090.0,0.6228]
[1754412658643,0.68656497,113100.0,113090.0,0.69205363]
[1754412658945,0.68656497,113100.0,113090.0,0.69405363]
[1754412659455,0.68656497,113100.0,113090.0,0.87093503]
[1754412659753,0.68656497,113100.0,113090.0,0.69405363]
[1754412660752,1.16340497,113100.0,113090.0,0.07125363]
[1754412660946,0.3038827,113070.0,113060.0,0.3778285]
[1754412661151,0.68661197,113070.0,113060.0,0.2893667]
[1754412661350,0.81930347,113070.0,113060.0,0.80867757]
[1754412661654,0.81930347,113070.0,113060.0,0.90261757]
[1754412662158,0.81930347,113070.0,113060.0,0.91228757]
[1754412662363,0.75213197,113070.0,113060.0,1.48163722]
[1754412662554,0.77507197,113070.0,113060.0,1.48163722]
[1754412663059,0.7541427,113070.0,113060.0,1.47963722]
[1754412664950,0.01371,113070.0,113060.0,0.85687722]
[1754412665152,0.5819394,113080.0,113070.0,0.2932027]
[1754412665350,0.8707741,113090.0,113080.0,0.2605171]
[1754412665553,0.7503204,113090.0,113080.0,1.47065675]
[1754412665860,0.6680677,113090.0,113080.0,0.9159871]
[1754412666061,0.6553577,113090.0,113080.0,1.47065675]
[1754412666356,0.6111356,113090.0,113080.0,1.47065675]
[1754412666857,0.07344,113090.0,113080.0,1.47065675]
[1754412667361,0.6111214,113090.0,113080.0,1.47065675]
[1754412668155,0.6111214,113090.0,113080.0,1.47165675]
[1754412668356,0.6111214,113090.0,113080.0,1.47265675]
[1754412669160,0.6111214,113090.0,113080.0,1.47165675]
[1754412669564,0.43424,113090.0,113080.0,1.47165675]
[1754412669761,0.1768814,113090.0,113080.0,1.47165675]
[1754412669959,0.8539529,113100.0,113090.0,0.2930614]
[1754412670159,0.7335031,113100.0,113090.0,0.92015037]
[1754412670360,0.6323576,113100.0,113090.0,0.92015037]
[1754412670563,0.6323458,113100.0,113090.0,0.92015037]
[1754412670760,0.09468,113100.0,113090.0,0.92015037]
[1754412671063,0.09468,113100.0,113090.0,1.28095037]
[1754412671457,0.09668,113100.0,113090.0,1.28095037]
[1754412672074,0.5376345,113120.0,113110.0,0.92376885]
[1754412672271,0.5376345,113120.0,113110.0,1.54644885]
[1754412672758,0.5719745,113120.0,113110.0,1.54644885]
[1754412673167,0.6036345,113120.0,113110.0,0.9917792]
[1754412673360,0.6036345,113120.0,113110.0,1.54644885]
[1754412673859,0.6036345,113120.0,113110.0,0.9917792]
[1754412674063,0.6036345,113120.0,113110.0,1.54644885]